bitfinex/quotes_BTCUSD_20240701
["timestamp","ask_amount","ask_price","bid_price","bid_amount"]
[1719857988883,0.02100472,63890.0,63886.0,0.219202]
[1719857989082,0.02100472,63890.0,63889.0,0.156521]
[1719857989286,0.02100472,63890.0,63888.0,0.156523]
[1719857990109,0.03531233,63889.0,63888.0,0.156523]
[1719857990366,0.03531233,63889.0,63888.0,0.1]
[1719857991059,0.02100472,63890.0,63888.0,0.256523]
[1719857991468,0.02100472,63890.0,63888.0,0.260523]
[1719857991681,0.05631705,63890.0,63888.0,0.262523]
[1719857991844,0.02100472,63890.0,63888.0,0.262523]
[1719857992051,0.02100472,63890.0,63889.0,0.156521]
[1719857992403,0.03531233,63889.0,63888.0,0.106]
[1719857992588,0.03531233,63889.0,63888.0,0.0059]
[1719857992783,0.02100472,63890.0,63888.0,0.0059]
[1719857992957,0.03531233,63889.0,63887.0,0.1]
[1719857993173,0.02100472,63890.0,63887.0,0.1]
[1719857993174,0.03531233,63888.0,63887.0,0.1]
[1719857993347,0.02100472,63890.0,63886.0,0.062675]
[1719857993348,0.03531233,63887.0,63886.0,0.062675]
[1719857993536,0.03531233,63887.0,63886.0,0.08125191]
[1719857994490,0.03531233,63887.0,63886.0,0.062675]
[1719857995032,0.02100472,63890.0,63886.0,0.219202]
[1719857995235,0.03531233,63887.0,63886.0,0.075675]
[1719857995583,0.03531233,63889.0,63888.0,0.0001]
[1719857996193,0.03531233,63889.0,63888.0,0.0002]
[1719857997756,0.02100472,63890.0,63888.0,0.0002]
[1719857997968,0.02110472,63890.0,63888.0,0.0002]
[1719857998493,0.02110472,63890.0,63888.0,0.0082]
[1719857998832,0.02110472,63890.0,63888.0,0.0002]
[1719857999028,0.02110472,63890.0,63888.0,0.0022]
[1719857999284,0.02110472,63890.0,63888.0,0.0062]
[1719858000371,0.05641705,63890.0,63888.0,0.0062]
[1719858000576,0.02110472,63890.0,63888.0,0.0062]
[1719858001364,0.03531233,63889.0,63888.0,0.0062]
[1719858001948,0.05641705,63890.0,63888.0,0.0022]
[1719858002375,0.02110472,63890.0,63888.0,0.0012]
[1719858002814,0.02110472,63890.0,63888.0,0.0002]
[1719858003221,0.02110472,63890.0,63888.0,0.0042]
[1719858003421,0.02110472,63890.0,63888.0,0.0062]
[1719858003834,0.05641705,63890.0,63888.0,0.0062]
[1719858004183,0.02110472,63890.0,63889.0,0.156521]
[1719858004379,0.02110472,63890.0,63889.0,0.469563]
[1719858004592,0.02110472,63890.0,63889.0,0.569563]
[1719858004818,0.02110472,63890.0,63889.0,0.59095067]
[1719858005038,0.02110472,63890.0,63889.0,0.569563]
[1719858006253,0.02110472,63890.0,63889.0,0.886605]
[1719858006424,0.02110472,63890.0,63889.0,0.93471669]
[1719858006643,0.02110472,63890.0,63889.0,0.888605]
[1719858009109,0.01810472,63890.0,63889.0,0.888605]
[1719858009777,0.01810472,63890.0,63889.0,0.106]
[1719858009778,0.05341705,63890.0,63889.0,0.106]
[1719858010042,0.05341705,63890.0,63889.0,0.262521]
[1719858010621,0.05341705,63890.0,63889.0,0.106]
[1719858010830,0.46191705,63890.0,63889.0,0.006]
[1719858010976,0.47191602,63890.0,63889.0,0.006]
[1719858011596,0.664255,63890.0,63889.0,0.006]
[1719858011882,0.664255,63890.0,63889.0,0.002]
[1719858012083,0.46671233,63889.0,63888.0,0.0002]
[1719858012295,0.73319826,63889.0,63888.0,0.0002]
[1719858012906,0.761338,63889.0,63888.0,0.0002]
[1719858013551,0.761338,63889.0,63874.0,0.000924]
[1719858013552,0.43671233,63875.0,63874.0,0.000924]
[1719858014585,0.63915702,63875.0,63874.0,0.000924]
[1719858014949,0.66205702,63875.0,63874.0,0.000924]
[1719858015152,0.73322756,63875.0,63874.0,0.005924]
[1719858015369,1.03322756,63875.0,63874.0,0.005924]
[1719858015654,0.73322756,63875.0,63874.0,0.005924]
[1719858015806,1.6125706,63875.0,63874.0,0.005924]
[1719858016004,0.1915,63854.0,63849.0,0.219324]
[1719858016204,0.03521233,63859.0,63852.0,0.156611]
[1719858016416,0.03521233,63859.0,63853.0,0.156608]
[1719858016623,0.03521233,63857.0,63853.0,0.156608]
[1719858016843,0.03521233,63857.0,63849.0,0.062706]
[1719858017050,0.2183,63861.0,63849.0,0.156617]
[1719858017051,0.03521233,63852.0,63849.0,0.156617]
[1719858017203,0.2183,63861.0,63849.0,0.156617]
[1719858017204,0.03521233,63853.0,63849.0,0.156617]
[1719858017411,0.03521233,63852.0,63850.0,0.156616]
[1719858017620,0.03521233,63851.0,63849.0,0.156619]
[1719858018205,0.03521233,63852.0,63849.0,0.156619]
[1719858018452,0.2183,63861.0,63847.0,0.262708]
[1719858018453,0.03521233,63851.0,63850.0,0.1]
[1719858018649,0.03511233,63850.0,63849.0,0.012]
[1719858018887,0.03511233,63848.0,63846.0,0.1]
[1719858019014,0.03511233,63847.0,63846.0,0.1]
[1719858019513,0.26841233,63847.0,63846.0,0.1]
[1719858019946,0.03511233,63845.0,63842.0,0.162713]
[1719858020210,0.03511233,63843.0,63842.0,0.1]
[1719858020347,0.03511233,63841.0,63838.0,0.1]
[1719858020547,0.2333,63847.0,63835.0,0.1]
[1719858020548,0.03511233,63838.0,63835.0,0.1]
[1719858020750,0.2333,63847.0,63836.0,0.313302]
[1719858020751,0.03511233,63845.0,63836.0,0.313302]
[1719858020949,0.03511233,63843.0,63837.0,0.1]
[1719858021157,0.03511233,63843.0,63838.0,0.219362]
[1719858021491,0.2333,63847.0,63839.0,0.256644]
[1719858021492,0.03511233,63845.0,63839.0,0.256644]
[1719858021669,0.03511233,63844.0,63839.0,0.256644]
[1719858021868,0.03511233,63845.0,63839.0,0.256644]
[1719858022072,0.2333,63847.0,63846.0,0.014]
[1719858022073,0.001,63847.0,63846.0,0.014]
[1719858022402,0.001,63847.0,63845.0,0.156628]
[1719858022552,0.001,63847.0,63846.0,0.750879]
[1719858022553,0.0009,63847.0,63846.0,0.750879]
[1719858022756,0.0009,63847.0,63846.0,0.96695865]
[1719858022939,0.0009,63847.0,63846.0,1.06695865]
[1719858022940,0.0008,63847.0,63846.0,1.06695865]
[1719858023583,0.0008,63847.0,63846.0,0.90461967]
[1719858023988,0.0008,63847.0,63846.0,1.68021165]
[1719858024391,0.1844,63866.0,63854.0,0.44298767]
[1719858024611,0.1844,63866.0,63864.0,0.156582]
[1719858024759,0.1829,63871.0,63861.0,0.02148767]
[1719858024961,0.03511233,63874.0,63862.0,0.72148767]
[1719858025283,0.1829,63875.0,63862.0,0.72148767]
[1719858025284,0.03511233,63873.0,63871.0,0.156564]
[1719858025486,0.21801233,63875.0,63870.0,0.313133]
[1719858025733,0.03511233,63876.0,63871.0,0.156564]
[1719858025936,0.4181,63889.0,63877.0,0.313101]
[1719858026066,0.03511233,63887.0,63878.0,0.313093]
[1719858026487,0.03511233,63886.0,63885.0,0.156528]
[1719858026667,0.03511233,63889.0,63885.0,0.313061]
[1719858026812,0.05401974,63890.0,63887.0,0.156525]
[1719858027011,0.01890741,63890.0,63886.0,0.156526]
[1719858027219,0.01890741,63890.0,63887.0,0.156525]
[1719858027458,0.01890741,63890.0,63886.0,0.2331]
[1719858027670,0.05401974,63890.0,63887.0,0.256525]
[1719858027887,0.01890741,63890.0,63889.0,0.156521]
[1719858028088,0.05,63895.0,63889.0,0.156521]
[1719858028089,0.02378897,63900.0,63889.0,0.156521]
[1719858028308,0.16233898,63899.0,63890.0,0.156518]
[1719858028516,0.16233898,63899.0,63888.0,0.313045]
[1719858028517,0.00026925,63894.0,63892.0,0.156512]
[1719858028667,0.00026925,63894.0,63893.0,0.156511]
[1719858028997,0.00026925,63894.0,63893.0,0.156411]
[1719858029198,0.00026925,63894.0,63891.0,0.156514]
[1719858029806,0.00026925,63894.0,63893.0,0.002]
[1719858030992,8.086e-05,63894.0,63893.0,0.002]
[1719858031739,8.086e-05,63894.0,63892.0,0.156514]
[1719858031943,8.086e-05,63894.0,63891.0,0.005]
[1719858032330,8.086e-05,63894.0,63893.0,0.469534]
[1719858032527,8.086e-05,63894.0,63893.0,0.782557]
[1719858032731,8.086e-05,63894.0,63893.0,0.787557]
[1719858032962,8.086e-05,63894.0,63893.0,0.790557]
[1719858033268,8.086e-05,63894.0,63893.0,0.820557]
[1719858033474,8.086e-05,63894.0,63893.0,0.920557]
[1719858033919,0.02378897,63900.0,63899.0,0.156496]
[1719858034498,0.02378897,63900.0,63899.0,0.156396]
[1719858035584,0.02878897,63900.0,63899.0,0.156396]
[1719858035818,0.02878897,63900.0,63899.0,200.156396]
[1719858036024,0.02878897,63900.0,63899.0,201.040582]
[1719858036232,0.02878897,63900.0,63899.0,201.03738976]
[1719858036874,0.02878897,63900.0,63899.0,201.06738976]
[1719858037046,0.02878897,63900.0,63899.0,201.26738976]
[1719858037241,0.02878897,63900.0,63899.0,201.55038276]
[1719858037479,0.02878897,63900.0,63899.0,201.58038276]
[1719858037587,0.02878897,63900.0,63899.0,1.61038276]
[1719858037792,0.02878897,63900.0,63899.0,1.6297258]
[1719858038013,0.02878897,63900.0,63899.0,1.6327258]
[1719858038014,0.02378897,63900.0,63899.0,1.6327258]
[1719858038414,0.02478897,63900.0,63899.0,1.6417258]
[1719858038658,0.02478897,63900.0,63899.0,1.24938976]
[1719858038859,0.02478897,63900.0,63899.0,1.10518976]
[1719858039211,0.02478897,63900.0,63899.0,1.81788276]
[1719858039389,0.02478897,63900.0,63899.0,1.81778276]
[1719858039947,0.02478897,63900.0,63899.0,1.75778276]
[1719858040290,0.02478897,63900.0,63899.0,1.81778276]
[1719858041438,0.02378897,63900.0,63899.0,1.73178276]
[1719858041643,0.02378897,63900.0,63899.0,1.09308976]
[1719858041842,0.02478897,63900.0,63899.0,1.10708976]
[1719858042059,0.02478897,63900.0,63899.0,1.43608276]
[1719858042294,0.02378897,63900.0,63899.0,1.42218276]
[1719858042498,0.02478897,63900.0,63899.0,1.10718976]
[1719858042903,0.02478897,63900.0,63899.0,0.76629676]
[1719858043104,0.02478897,63900.0,63899.0,0.78029676]
[1719858043105,0.02578897,63900.0,63899.0,0.78029676]
[1719858043314,0.02578897,63900.0,63899.0,1.10728976]
[1719858044509,0.02378897,63900.0,63899.0,1.07928976]
[1719858044713,0.02378897,63900.0,63899.0,1.13728976]
[1719858044889,0.02478897,63900.0,63899.0,1.10728976]
[1719858045092,0.02478897,63900.0,63899.0,1.09328976]
[1719858045305,0.02578897,63900.0,63899.0,1.09328976]
[1719858045512,0.02578897,63900.0,63899.0,1.10728976]
[1719858045721,0.02378897,63900.0,63899.0,1.09328976]
[1719858045923,0.02488897,63900.0,63899.0,1.10728976]
[1719858046125,0.02488897,63900.0,63899.0,1.09328976]
[1719858046348,0.02488897,63900.0,63899.0,1.10728976]
[1719858047516,0.02388897,63900.0,63899.0,1.09328976]
[1719858047720,0.02388897,63900.0,63899.0,1.09421376]
[1719858047877,0.02572897,63900.0,63899.0,1.09421376]
[1719858048486,0.02672897,63900.0,63899.0,1.10821376]
[1719858048692,0.02572897,63900.0,63899.0,1.10821376]
[1719858049093,0.44262897,63900.0,63899.0,0.143124]
[1719858049290,0.44162897,63900.0,63899.0,0.101124]
[1719858049512,0.44162897,63900.0,63899.0,0.115124]
[1719858049673,0.50162897,63900.0,63899.0,0.015124]
[1719858050559,0.44162897,63900.0,63899.0,0.015124]
[1719858050884,0.44162897,63900.0,63899.0,0.001124]
[1719858051158,0.44262897,63900.0,63899.0,0.023124]
[1719858051657,0.44262897,63900.0,63899.0,0.001124]
[1719858051658,0.44062897,63900.0,63899.0,0.001124]
[1719858051861,0.44062897,63900.0,63899.0,0.004124]
[1719858052071,0.44062897,63900.0,63899.0,0.009124]
[1719858052422,0.44062897,63900.0,63899.0,0.004124]
[1719858052762,0.44062897,63900.0,63899.0,0.006124]
[1719858052963,0.44062897,63900.0,63899.0,0.009124]
[1719858054080,0.43862897,63900.0,63899.0,0.001124]
[1719858054520,0.43862897,63900.0,63899.0,0.009124]
[1719858054719,0.43862897,63900.0,63899.0,0.006124]
[1719858054869,0.43862897,63900.0,63899.0,0.001124]
[1719858055073,0.43862897,63900.0,63899.0,0.009124]
[1719858055675,0.43862897,63900.0,63899.0,0.004124]
[1719858055676,0.20402897,63900.0,63899.0,0.004124]
[1719858056078,0.20402897,63900.0,63899.0,0.009124]
[1719858057226,0.27409399,63900.0,63899.0,0.004124]
[1719858057425,0.26402897,63900.0,63899.0,0.004124]
[1719858057594,0.2740941,63900.0,63899.0,0.009124]
[1719858057792,0.2140941,63900.0,63899.0,0.009124]
[1719858058193,0.2140941,63900.0,63899.0,0.001124]
[1719858058398,0.2440941,63900.0,63899.0,0.006124]
[1719858058625,0.2140941,63900.0,63899.0,0.009124]
[1719858058924,0.2440941,63900.0,63899.0,0.004124]
[1719858059261,0.2440941,63900.0,63899.0,0.009124]
[1719858059968,0.2140941,63900.0,63899.0,0.009124]
[1719858060371,0.2440941,63900.0,63899.0,0.009124]
[1719858060604,0.26402897,63900.0,63899.0,0.009124]
[1719858060781,0.27409399,63900.0,63899.0,0.009124]
[1719858062361,0.21408851,63900.0,63899.0,0.009124]
[1719858062686,0.24408851,63900.0,63899.0,0.009124]
[1719858062890,0.20402897,63900.0,63899.0,0.009124]
[1719858063541,0.22615649,63901.0,63900.0,0.07006502]
[1719858063866,0.01018726,63901.0,63900.0,0.07006502]
[1719858064043,0.00015649,63901.0,63900.0,0.07006502]
[1719858064855,0.00015649,63901.0,63900.0,0.07506502]
[1719858065426,0.00015649,63901.0,63900.0,0.07006502]
[1719858065867,0.00015649,63901.0,63900.0,0.07506502]
[1719858066063,0.00015649,63901.0,63900.0,0.07406502]
[1719858066515,0.00015649,63901.0,63900.0,0.23055902]
[1719858066723,0.00015649,63901.0,63900.0,0.54354802]
[1719858066872,0.00015649,63901.0,63900.0,0.07406502]
[1719858067446,0.00015649,63901.0,63900.0,0.07106502]
[1719858067575,0.00015649,63901.0,63900.0,0.07506502]
[1719858067787,0.00015649,63901.0,63900.0,0.07406502]
[1719858067995,0.00015649,63901.0,63900.0,0.37406502]
[1719858068184,0.00015649,63901.0,63900.0,0.37006502]
[1719858068398,0.00015649,63901.0,63900.0,0.37506502]
[1719858068606,0.00015649,63901.0,63900.0,0.37806502]
[1719858068984,0.00015649,63901.0,63900.0,0.37006502]
[1719858069188,0.00015649,63901.0,63900.0,0.37296502]
[1719858069420,0.00015649,63901.0,63900.0,0.37796502]
[1719858069594,0.43095649,63901.0,63900.0,0.37796502]
[1719858069800,0.47095396,63901.0,63900.0,0.37796502]
[1719858070001,0.43095649,63901.0,63900.0,0.37796502]
[1719858070201,0.44092541,63901.0,63900.0,0.37796502]
[1719858070644,0.44092541,63901.0,63900.0,0.36996502]
[1719858070857,0.44092541,63901.0,63900.0,0.37796502]
[1719858071063,0.44092541,63901.0,63900.0,0.308]
[1719858071263,0.44092541,63901.0,63900.0,0.303]
[1719858071559,0.44092541,63901.0,63900.0,0.305]
[1719858071765,0.01012541,63901.0,63900.0,0.305]
[1719858071977,0.00015649,63901.0,63900.0,0.308]
[1719858072194,0.00015649,63901.0,63900.0,0.3]
[1719858072391,0.00015649,63901.0,63900.0,0.305]
[1719858072594,0.00015649,63901.0,63900.0,0.308]
[1719858073620,0.00015649,63901.0,63900.0,0.303]
[1719858073752,0.00015649,63901.0,63900.0,0.3]
[1719858073952,0.00015649,63901.0,63900.0,0.308]
[1719858074153,0.00015649,63901.0,63900.0,0.312]
[1719858074464,0.00015649,63901.0,63900.0,0.308]
[1719858074667,0.00015649,63901.0,63900.0,0.305]
[1719858074872,0.00015649,63901.0,63900.0,0.314]
[1719858075072,0.00015649,63901.0,63900.0,0.309]
[1719858075322,0.00115649,63901.0,63900.0,0.317]
[1719858075513,0.00115649,63901.0,63900.0,0.308]
[1719858075921,0.00125649,63901.0,63900.0,0.008]
[1719858076169,0.01123492,63901.0,63900.0,0.008]
[1719858076544,0.01123502,63901.0,63900.0,0.008]
[1719858077371,0.03,63905.0,63903.0,199.98034498]
[1719858077627,0.03,63907.0,63903.0,199.98034498]
[1719858077781,0.16233898,63906.0,63903.0,199.98034498]
[1719858077989,0.2368,63908.0,63903.0,199.98034498]
[1719858079020,0.2368,63908.0,63903.0,199.98218381]
[1719858079379,0.2368,63908.0,63904.0,0.07934304]
[1719858079590,0.1929,63912.0,63904.0,0.07934304]
[1719858079787,0.23343958,63911.0,63904.0,0.07934304]
[1719858080045,0.0711006,63910.0,63903.0,0.001]
[1719858080178,0.16233898,63911.0,63903.0,0.001]
[1719858080517,0.1929,63912.0,63903.0,0.001]
[1719858080728,0.10109741,63911.0,63903.0,0.002]
[1719858080932,0.03,63909.0,63903.0,0.001]
[1719858081140,0.001,63908.0,63903.0,0.001]
[1719858081343,0.001,63908.0,63899.0,0.001124]
[1719858081344,0.001,63908.0,63899.0,0.15762]
[1719858081561,0.41523898,63912.0,63900.0,0.000924]
[1719858081699,0.00084,63908.0,63900.0,0.000924]
[1719858082338,0.0001,63901.0,63900.0,0.157418]
[1719858082655,0.0001,63901.0,63900.0,0.000924]
[1719858084029,0.0001,63901.0,63900.0,0.001924]
[1719858084461,0.0011,63901.0,63900.0,0.010924]
[1719858084623,0.0011,63901.0,63900.0,0.009924]
[1719858084836,0.0001,63901.0,63900.0,0.010924]
[1719858085038,0.0011,63901.0,63900.0,0.018924]
[1719858085233,0.0011,63901.0,63900.0,0.008924]
[1719858085433,0.0011,63901.0,63900.0,0.000924]
[1719858085728,0.0011,63901.0,63900.0,0.010924]
[1719858085928,0.0001,63901.0,63900.0,0.010924]
[1719858086108,0.1972,63901.0,63900.0,0.006924]
[1719858086439,0.20519305,63901.0,63900.0,0.006924]
[1719858086644,0.50687507,63901.0,63900.0,0.006924]
[1719858086866,0.64788106,63901.0,63900.0,0.000924]
[1719858087071,0.06,63888.0,63874.0,0.7463634]
[1719858087295,0.19233898,63887.0,63880.0,0.046363]
[1719858087502,0.19233898,63887.0,63874.0,0.7]
[1719858087503,0.00880389,63886.0,63874.0,0.7]
[1719858087708,0.16233898,63885.0,63874.0,0.7]
[1719858087915,0.4283,63890.0,63875.0,0.313109]
[1719858087916,0.00880389,63884.0,63875.0,0.313109]
[1719858088113,0.03,63893.0,63879.0,0.156545]
[1719858088315,0.0088095,63892.0,63879.0,0.156545]
[1719858088518,0.03,63894.0,63883.0,0.01139875]
[1719858088717,0.006,63888.0,63887.0,0.01139875]
[1719858088942,0.4313,63895.0,63887.0,0.01139875]
[1719858089181,0.4313,63895.0,63889.0,0.01139875]
[1719858089356,0.4313,63895.0,63884.0,0.1797]
[1719858089357,0.006,63893.0,63885.0,0.01139875]
[1719858089533,0.0059,63893.0,63885.0,0.01139875]
[1719858089738,0.0059,63893.0,63884.0,0.1797]
[1719858089739,0.0059,63893.0,63888.0,0.01139875]
[1719858090132,0.4313,63895.0,63887.0,0.01139875]
[1719858090335,0.4613,63895.0,63885.0,0.01139875]
[1719858090559,0.01902858,63901.0,63891.0,0.01139875]
[1719858090776,0.03,63900.0,63891.0,0.01139875]
[1719858090970,0.03,63899.0,63891.0,0.01139875]
[1719858091183,0.01902858,63901.0,63893.0,0.01139875]
[1719858091754,0.002,63895.0,63892.0,0.01139875]
[1719858092391,0.002,63895.0,63893.0,0.001]
[1719858092588,0.0319,63895.0,63893.0,0.001]
[1719858092789,0.0299,63895.0,63885.0,0.01139875]
[1719858092955,0.0298,63895.0,63885.0,0.0002]
[1719858093157,0.0298,63893.0,63883.0,0.01159875]
[1719858093361,0.0298,63891.0,63883.0,0.01159875]
[1719858093563,0.4171,63896.0,63886.0,0.01159875]
[1719858093789,0.57943898,63896.0,63889.0,0.01159875]
[1719858093982,0.57943898,63896.0,63879.0,0.256544]
[1719858093983,0.0298,63899.0,63888.0,0.01159875]
[1719858094184,0.0298,63898.0,63888.0,0.01159875]
[1719858094406,0.0298,63898.0,63888.0,0.000462]
[1719858094601,0.0298,63897.0,63888.0,0.000462]
[1719858094825,0.1935,63891.0,63888.0,0.000462]
[1719858095016,0.2233,63891.0,63888.0,0.000462]
[1719858095802,0.2233,63891.0,63888.0,0.001462]
[1719858095803,0.0298,63889.0,63888.0,0.001462]
[1719858096003,0.21513898,63889.0,63888.0,0.001462]
[1719858096206,0.40853898,63889.0,63888.0,0.000462]
[1719858096400,0.70751768,63889.0,63888.0,0.000462]
[1719858096645,0.75444347,63889.0,63888.0,0.000462]
[1719858097266,0.70751768,63889.0,63888.0,0.000462]
[1719858097466,1.28534304,63889.0,63888.0,0.000462]
[1719858097690,1.28524304,63889.0,63888.0,0.000462]
[1719858097927,2.90163016,63889.0,63888.0,0.004462]
[1719858098161,2.73930881,63889.0,63888.0,0.004462]
[1719858098348,2.42626681,63889.0,63888.0,0.004462]
[1719858098703,2.42626681,63889.0,63888.0,0.001462]
[1719858099099,2.42616681,63889.0,63888.0,0.000462]
[1719858099307,2.74120881,63889.0,63888.0,0.000462]
[1719858099528,2.90354252,63889.0,63888.0,0.000462]
[1719858099786,2.99788252,63889.0,63888.0,0.000462]
[1719858100814,2.99788252,63889.0,63888.0,0.000562]
[1719858101128,2.99798116,63889.0,63888.0,0.000562]
[1719858101409,2.99598116,63889.0,63888.0,0.000562]
[1719858101580,3.00697941,63889.0,63888.0,0.001562]
[1719858101784,3.00697941,63889.0,63888.0,0.002562]
[1719858102220,3.10062466,63889.0,63888.0,0.002562]
[1719858102444,3.30912141,63889.0,63888.0,0.001562]
[1719858102820,3.33689299,63889.0,63888.0,0.002562]
[1719858103275,0.0295,63860.0,63857.0,0.4662]
[1719858103446,0.2416,63863.0,63855.0,0.47591475]
[1719858103648,0.21483898,63862.0,63855.0,0.47591475]
[1719858103827,0.0295,63861.0,63854.0,0.01189875]
[1719858104003,0.0295,63860.0,63851.0,0.1791]
[1719858104220,0.0295,63860.0,63849.0,0.2374]
[1719858104221,0.19183898,63860.0,63849.0,0.2374]
[1719858104421,0.0295,63858.0,63849.0,0.2374]
[1719858104795,0.16233898,63860.0,63857.0,0.014]
[1719858104796,0.19283898,63860.0,63857.0,0.014]
[1719858105000,0.19183898,63860.0,63851.0,0.01189875]
[1719858105116,0.19183898,63860.0,63852.0,0.01189875]
[1719858105317,0.0295,63857.0,63851.0,0.008]
[1719858105520,0.0295,63856.0,63849.0,0.01]
[1719858105720,0.0295,63854.0,63849.0,0.01]
[1719858105924,0.0295,63854.0,63849.0,0.021]
[1719858106128,0.16233898,63856.0,63850.0,0.01189875]
[1719858106389,0.2416,63863.0,63854.0,0.20019875]
[1719858106390,0.2032,63862.0,63854.0,0.20019875]
[1719858106562,0.2032,63862.0,63854.0,0.1883]
[1719858106563,0.16233898,63861.0,63854.0,0.1883]
[1719858106764,0.023,63860.0,63854.0,0.20019875]
[1719858106976,0.2416,63863.0,63855.0,0.07934304]
[1719858107165,0.0295,63868.0,63860.0,0.01189875]
[1719858107348,0.4233,63873.0,63862.0,0.07934304]
[1719858107544,0.16233898,63872.0,63862.0,0.01189875]
[1719858107891,0.0295,63868.0,63862.0,0.1885]
[1719858108091,0.0294,63868.0,63862.0,0.1885]
[1719858108506,0.16233898,63872.0,63862.0,0.1895]
[1719858108714,0.023,63871.0,63862.0,0.1895]
[1719858109016,0.16233898,63872.0,63864.0,0.01199875]
[1719858109224,0.6233,63877.0,63862.0,0.1885]
[1719858109225,0.001,63868.0,63866.0,0.01199875]
[1719858109426,0.001,63868.0,63867.0,0.01199875]
[1719858109629,0.0293,63879.0,63869.0,0.01209875]
[1719858109805,0.16233898,63878.0,63868.0,0.01209875]
[1719858110027,0.005,63871.0,63870.0,0.01209875]
[1719858110394,0.005,63871.0,63869.0,0.1885]
[1719858110640,0.005,63871.0,63870.0,0.01209875]
[1719858111103,0.0293,63880.0,63870.0,0.01209875]
[1719858111311,0.001,63871.0,63870.0,0.01909875]
[1719858111711,0.16233898,63880.0,63870.0,0.01209875]
[1719858112118,0.002,63871.0,63870.0,0.013]
[1719858112522,0.002,63871.0,63870.0,0.02509875]
[1719858112720,0.001,63871.0,63870.0,0.32764179]
[1719858112921,0.001,63871.0,63870.0,1.27088477]
[1719858113120,0.0009,63871.0,63870.0,1.24088477]
[1719858113317,0.0009,63871.0,63870.0,1.27088477]
[1719858113519,0.005,63880.0,63879.0,0.01209875]
[1719858113702,0.0049,63880.0,63879.0,0.42049875]
[1719858113905,0.0069,63880.0,63879.0,0.42049875]
[1719858114385,0.0049,63880.0,63879.0,0.42049875]
[1719858114602,0.00094,63889.0,63879.0,0.42049875]
[1719858114808,0.00084,63889.0,63879.0,0.42849875]
[1719858115050,0.00084,63889.0,63880.0,0.01209875]
[1719858115248,0.16317898,63889.0,63879.0,0.4084]
[1719858115450,0.16317898,63889.0,63884.0,0.01209875]
[1719858115617,0.16317898,63889.0,63883.0,0.01199875]
[1719858115818,0.16317898,63889.0,63882.0,0.01199875]
[1719858115964,0.16717898,63889.0,63883.0,0.01199875]
[1719858116420,0.16317898,63889.0,63883.0,0.01199875]
[1719858116660,0.16317898,63889.0,63879.0,0.4084]
[1719858117108,0.0293,63886.0,63872.0,0.2315]
[1719858117267,0.16233898,63885.0,63879.0,0.008]
[1719858117471,0.023,63884.0,63879.0,0.008]
[1719858117677,0.0293,63882.0,63879.0,0.008]
[1719858117888,0.18533898,63881.0,63873.0,0.1]
[1719858118058,0.16233898,63881.0,63874.0,0.01199875]
[1719858118804,0.16233898,63881.0,63879.0,0.001]
[1719858119096,0.16233898,63881.0,63872.0,0.24349875]
[1719858119243,0.16233898,63881.0,63874.0,0.005]
[1719858119447,0.16233898,63881.0,63874.0,0.0049]
[1719858119704,0.16233898,63881.0,63873.0,0.01199875]
[1719858119847,0.16233898,63881.0,63872.0,0.2315]
[1719858120047,0.16233898,63881.0,63879.0,0.005]
[1719858120416,0.0293,63880.0,63879.0,0.012]
[1719858120543,0.44143898,63880.0,63879.0,0.012]
[1719858120748,0.61173898,63880.0,63879.0,0.012]
[1719858120943,0.61173898,63880.0,63879.0,0.005]
[1719858121350,0.98281703,63880.0,63879.0,0.012]
[1719858121560,0.68281703,63880.0,63879.0,0.007]
[1719858121766,0.0293,63878.0,63874.0,0.005]
[1719858121973,0.0293,63876.0,63874.0,0.005]
[1719858122187,0.18533898,63875.0,63871.0,0.0009]
[1719858122684,0.011,63880.0,63872.0,0.1868]
[1719858122834,0.011,63880.0,63872.0,0.19879875]
[1719858123034,0.008,63878.0,63874.0,0.001]
[1719858123216,0.008,63878.0,63874.0,0.01289875]
[1719858123415,0.008,63878.0,63875.0,0.01199875]
[1719858123612,0.008,63878.0,63876.0,0.01199875]
[1719858123799,0.014,63878.0,63876.0,0.01199875]
[1719858123994,0.17633898,63878.0,63871.0,0.0009]
[1719858124200,0.17033898,63878.0,63871.0,0.0009]
[1719858124619,0.004,63875.0,63871.0,0.0009]
[1719858125023,0.16533898,63878.0,63871.0,0.0009]
[1719858125237,0.16233898,63878.0,63871.0,0.0019]
[1719858125444,0.20363898,63878.0,63871.0,0.0019]
[1719858125790,0.20363898,63878.0,63871.0,0.0009]
[1719858125954,0.002,63875.0,63871.0,0.0009]
[1719858126163,0.002,63875.0,63874.0,0.01199875]
[1719858127523,0.002,63875.0,63874.0,0.43599875]
[1719858127724,0.2001,63887.0,63878.0,0.01119875]
[1719858127923,0.204081,63886.0,63878.0,0.01189875]
[1719858128123,0.1768,63891.0,63882.0,0.01189875]
[1719858128428,0.16317898,63889.0,63882.0,0.01189875]
[1719858128873,0.16317898,63889.0,63878.0,0.01189875]
[1719858129046,0.16317898,63889.0,63880.0,0.01189875]
[1719858129272,0.16317898,63889.0,63874.0,0.424]
[1719858129273,0.16317898,63889.0,63882.0,0.01289875]
[1719858129423,0.16317898,63889.0,63883.0,0.01189875]
[1719858129424,0.17717898,63889.0,63883.0,0.01189875]
[1719858129596,0.17717898,63889.0,63884.0,0.01189875]
[1719858130197,0.006,63887.0,63882.0,0.001]
[1719858130497,0.17717898,63889.0,63882.0,0.01289875]
[1719858130608,0.16317898,63889.0,63882.0,0.01189875]
[1719858130815,0.16317898,63889.0,63884.0,0.001]
[1719858130816,0.19847898,63889.0,63884.0,0.001]
[1719858131018,0.21247898,63889.0,63884.0,0.001]
[1719858131353,0.21247898,63889.0,63882.0,0.0001]
[1719858131354,0.20647898,63889.0,63882.0,0.0001]
[1719858131554,0.1708,63886.0,63882.0,0.0021]
[1719858131750,0.16233898,63885.0,63882.0,0.0021]
[1719858131941,0.023,63884.0,63882.0,0.0021]
[1719858132165,0.16233898,63883.0,63882.0,0.0021]
[1719858132524,0.16233898,63883.0,63882.0,0.0011]
[1719858132800,0.16233898,63883.0,63882.0,0.0021]
[1719858133004,0.16233898,63883.0,63882.0,0.0011]